fUSD/lending_fUSD_20250119
["ID","MTS","AMOUNT","RATE_DAILY","PERIOD"]
[349560069,1737295845363,-500.0,0.00019726,2]
[349560072,1737295845372,-462.93488849,0.00019726,2]
[349560074,1737295845383,-500.0,0.00019726,2]
[349560077,1737295845392,-500.0,0.00019726,2]
[349560080,1737295845402,-500.0,0.00019726,2]
[349560082,1737295845411,-500.0,0.00019726,2]
[349560083,1737295845421,-500.0,0.00019726,2]
[349560084,1737295845430,-500.0,0.00019726,2]
[349560085,1737295845439,-601.44,0.00019726,2]
[349560088,1737295845449,-500.0,0.00019726,2]
[349560090,1737295845458,-500.0,0.00019726,2]
[349560092,1737295845468,-500.0,0.00019726,2]
[349560093,1737295845478,-500.0,0.00019726,2]
[349560094,1737295845487,-500.0,0.00019726,2]
[349560095,1737295845497,-500.0,0.00019726,2]
[349560096,1737295845507,-500.0,0.00019726,2]
[349560097,1737295845519,-525.22,0.00019726,2]
[349560098,1737295845528,-500.0,0.00019726,2]
[349560099,1737295845538,-500.0,0.00019726,2]
[349560100,1737295845547,-500.0,0.00019726,2]
[349560101,1737295845557,-500.0,0.00019726,2]
[349560102,1737295845566,-500.0,0.00019726,2]
[349560103,1737295845576,-500.0,0.00019726,2]
[349560104,1737295845586,-500.0,0.00019726,2]
[349560105,1737295845595,-500.0,0.00019726,2]
[349560106,1737295845605,-500.0,0.00019726,2]
[349560107,1737295845615,-500.0,0.00019726,2]
[349560108,1737295845624,-500.0,0.00019726,2]
[349560109,1737295845635,-500.0,0.00019726,2]
[349560110,1737295845645,-500.0,0.00019726,2]
[349560111,1737295845654,-500.0,0.00019726,2]
[349560112,1737295845664,-500.0,0.00019726,2]
[349560113,1737295845673,-379.77976266,0.00019726,2]
[349560114,1737295845683,-624.0,0.00019726,2]
[349560115,1737295845693,-734.71,0.00019726,2]
[349560116,1737295845703,-500.0,0.00019726,2]
[349560117,1737295845712,-636.09,0.00019726,2]
[349560118,1737295845721,-500.0,0.00019726,2]
[349560119,1737295845731,-500.0,0.00019726,2]
[349560120,1737295845740,-500.0,0.00019726,2]
[349560121,1737295845750,-684.88,0.00019726,2]
[349560122,1737295845760,-500.0,0.00019726,2]
[349560123,1737295845774,-500.0,0.00019726,2]
[349560124,1737295845783,-1247.32,0.00019726,2]
[349560125,1737295845792,-500.0,0.00019726,2]
[349560126,1737295845801,-986.9,0.00019726,2]
[349560127,1737295845812,-500.0,0.00019726,2]
[349560128,1737295845824,-2869.51,0.00019726,2]
[349560129,1737295845833,-500.0,0.00019726,2]
[349560130,1737295845847,-500.0,0.00019726,2]
[349560131,1737295845856,-500.0,0.00019726,2]
[349560132,1737295845866,-511.89,0.00019726,2]
[349560133,1737295845876,-547.55,0.00019726,2]
[349560134,1737295845888,-500.0,0.00019726,2]
[349560135,1737295845898,-500.0,0.00019726,2]
[349560136,1737295845907,-500.0,0.00019726,2]
[349560137,1737295845916,-500.0,0.00019726,2]
[349560138,1737295845926,-980.39,0.00019726,2]
[349560139,1737295845935,-500.0,0.00019726,2]
[349560140,1737295845945,-500.0,0.00019726,2]
[349560141,1737295845955,-1901.43,0.00019726,2]
[349560142,1737295845965,-574.45,0.00019726,2]
[349560143,1737295845974,-500.0,0.00019726,2]
[349560144,1737295845984,-500.0,0.00019726,2]
[349560145,1737295845993,-1895.82,0.00019726,2]
[349560146,1737295846003,-1772.87,0.00019726,2]
[349560147,1737295846017,-907.58,0.00019726,2]
[349560149,1737295846027,-500.0,0.00019726,2]
[349560151,1737295846036,-500.0,0.00019726,2]
[349560153,1737295846046,-962.1,0.00019726,2]
[349560155,1737295846056,-611.5,0.00019726,2]
[349560157,1737295846066,-500.0,0.00019726,2]
[349560159,1737295846075,-615.07,0.00019726,2]
[349560160,1737295846085,-1081.13,0.00019726,2]
[349560161,1737295846094,-1824.47,0.00019726,2]
[349560162,1737295846104,-1128.83,0.00019726,2]
[349560163,1737295846114,-779.59,0.00019726,2]
[349560164,1737295846123,-512.67774885,0.00019726,2]
[349560165,1737295846133,-1057.43,0.00019726,2]
[349560166,1737295846142,-500.0,0.00019726,2]
[349560167,1737295846152,-500.0,0.00019726,2]
[349560168,1737295846162,-2511.83,0.00019726,2]
[349560169,1737295846172,-808.36,0.00019726,2]
[349560170,1737295846182,-500.0,0.00019726,2]
[349560171,1737295846192,-950.06,0.00019726,2]
[349560172,1737295846202,-1505.94,0.00019726,2]
[349560173,1737295846212,-500.0,0.00019726,2]
[349560174,1737295846221,-1601.1,0.00019726,2]
[349560175,1737295846231,-1392.17,0.00019726,2]
[349560176,1737295846240,-1936.96,0.00019726,2]
[349560177,1737295846250,-913.05,0.00019726,2]
[349560178,1737295846259,-2265.47,0.00019726,2]
[349560179,1737295846273,-500.0,0.00019726,2]
[349560180,1737295846283,-500.0,0.00019726,2]
[349560181,1737295846293,-500.0,0.00019726,2]
[349560182,1737295846302,-1982.14,0.00019726,2]
[349560183,1737295846311,-500.0,0.00019726,2]
[349560184,1737295846321,-553.34,0.00019726,2]
[349560185,1737295846330,-3330.96,0.00019726,2]
[349560186,1737295846340,-500.0,0.00019726,2]
[349560187,1737295846349,-500.0,0.00019726,2]
[349560188,1737295846412,-779.34,0.00019726,2]
[349560189,1737295846422,-1043.03,0.00019726,2]
[349560190,1737295846432,-500.0,0.00019726,2]
[349560191,1737295846442,-1370.63,0.00019726,2]
[349560192,1737295846452,-500.0,0.00019726,2]
[349560193,1737295846461,-564.65,0.00019726,2]
[349560194,1737295846471,-3709.46,0.00019726,2]
[349560195,1737295846480,-502.23,0.00019726,2]
[349560196,1737295846490,-500.0,0.00019726,2]
[349560197,1737295846499,-1640.85,0.00019726,2]
[349560198,1737295846509,-544.68,0.00019726,2]
[349560199,1737295846523,-1350.5,0.00019726,2]
[349560200,1737295846532,-797.87,0.00019726,2]
[349560201,1737295846542,-467.77731775,0.00019726,2]
[349560202,1737295846551,-3651.14,0.00019726,2]
[349560203,1737295846560,-4438.25,0.00019726,2]
[349560204,1737295846569,-500.0,0.00019726,2]
[349560205,1737295846579,-500.0,0.00019726,2]
[349560206,1737295846589,-500.0,0.00019726,2]
[349560207,1737295846598,-500.0,0.00019726,2]
[349560208,1737295846607,-759.5,0.00019726,2]
[349560209,1737295846616,-892.16,0.00019726,2]
[349560210,1737295846625,-500.0,0.00019726,2]
[349560211,1737295846635,-2450.03,0.00019726,2]
[349560212,1737295846645,-500.0,0.00019726,2]
[349560213,1737295846654,-501.18,0.00019726,2]
[349560214,1737295846663,-163.37013092,0.00019726,2]
[349560215,1737295846673,-500.0,0.00019726,2]
[349560216,1737295846682,-500.0,0.00019726,2]
[349560217,1737295846691,-723.03,0.00019726,2]
[349560218,1737295846700,-530.67,0.00019726,2]
[349560219,1737295846710,-500.0,0.00019726,2]
[349560220,1737295846719,-2025.11,0.00019726,2]
[349560221,1737295846729,-500.0,0.00019726,2]
[349560222,1737295846738,-500.0,0.00019726,2]
[349560223,1737295846748,-864.92,0.00019726,2]
[349560224,1737295846757,-500.0,0.00019726,2]
[349560225,1737295846771,-1553.11,0.00019726,2]
[349560226,1737295846781,-6815.31,0.00019726,2]
[349560227,1737295846791,-500.0,0.00019726,2]
[349560228,1737295846801,-586.46,0.00019726,2]
[349560229,1737295846810,-939.47,0.00019726,2]
[349560230,1737295846823,-500.0,0.00019726,2]
[349560231,1737295846833,-1310.9,0.00019726,2]
[349560232,1737295846842,-500.0,0.00019726,2]
[349560233,1737295846851,-500.0,0.00019726,2]
[349560234,1737295846863,-1177.09,0.00019726,2]
[349560235,1737295846873,-500.0,0.00019726,2]
[349560236,1737295846882,-1155.77,0.00019726,2]
[349560237,1737295846893,-500.0,0.00019726,2]
[349560238,1737295846903,-2403.83,0.00019726,2]
[349560239,1737295846912,-5986.62,0.00019726,2]
[349560240,1737295846921,-866.62,0.00019726,2]
[349560241,1737295846930,-500.0,0.00019726,2]
[349560242,1737295846940,-2276.55,0.00019726,2]
[349560243,1737295846949,-500.0,0.00019726,2]
[349560244,1737295846958,-1028.52,0.00019726,2]
[349560245,1737295846968,-633.36,0.00019726,2]
[349560246,1737295846979,-727.12,0.00019726,2]
[349560247,1737295846988,-1083.84,0.00019726,2]
[349560248,1737295846998,-697.52,0.00019726,2]
[349560249,1737295847007,-500.0,0.00019726,2]
[349560250,1737295847020,-500.0,0.00019726,2]
[349560251,1737295847029,-1671.75,0.00019726,2]
[349560252,1737295847038,-872.62,0.00019726,2]
[349560253,1737295847047,-1470.37,0.00019726,2]
[349560254,1737295847056,-500.0,0.00019726,2]
[349560255,1737295847066,-538.06,0.00019726,2]
[349560256,1737295847076,-2113.17,0.00019726,2]
[349560257,1737295847085,-669.95,0.00019726,2]
[349560258,1737295847094,-6374.84,0.00019726,2]
[349560259,1737295847105,-608.59,0.00019726,2]
[349560260,1737295847115,-595.58,0.00019726,2]
[349560261,1737295847123,-699.23,0.00019726,2]
[349560262,1737295847133,-675.11,0.00019726,2]
[349560263,1737295847142,-946.85,0.00019726,2]
[349560264,1737295847151,-500.0,0.00019726,2]
[349560265,1737295847161,-535.65,0.00019726,2]
[349560266,1737295847171,-500.0,0.00019726,2]
[349560267,1737295847180,-500.0,0.00019726,2]
[349560268,1737295847189,-798.35,0.00019726,2]
[349560269,1737295847199,-1273.57,0.00019726,2]
[349560270,1737295847208,-500.0,0.00019726,2]
[349560271,1737295847217,-500.0,0.00019726,2]
[349560272,1737295847227,-500.0,0.00019726,2]
[349560273,1737295847236,-205.89,0.00019726,2]
[349560274,1737295847245,-350.55,0.00019726,2]
[349560275,1737295847255,-200.0,0.00019759,2]
[349560276,1737295847265,-2051.0,0.000198,2]
[349560277,1737295847275,-85245.83144348,0.000198,2]
[349560278,1737295847285,-667.46622834,0.000199,2]
[349560279,1737295847294,-3400.0,0.000199,7]
[349560280,1737295847303,-203.94393132,0.000199,2]
[349560281,1737295847313,-7329.0083787,0.00019989,2]
[349560282,1737295847322,-738.52,0.00019999,2]
[349560283,1737295847332,-500.0,0.00019999,2]
[349560284,1737295847341,-1217.08,0.00019999,2]
[349560285,1737295847351,-3718.9,0.00019999,2]
[349560286,1737295847360,-1134.46,0.00019999,2]
[349560287,1737295847369,-500.0,0.00019999,2]
[349560288,1737295847379,-724.33,0.00019999,2]
[349560289,1737295847388,-500.0,0.00019999,2]
[349560290,1737295847398,-771.48,0.00019999,2]
[349560291,1737295847409,-500.0,0.00019999,2]
[349560292,1737295847418,-1000.0,0.00019999,2]
[349560293,1737295847428,-700.04,0.00019999,2]
[349560294,1737295847437,-759.68,0.00019999,2]
[349560295,1737295847447,-500.0,0.00019999,2]
[349560296,1737295847456,-17496.2209109,0.0002,2]
[349560297,1737295847467,-150.0,0.0002,2]
[349560298,1737295847476,-500.0,0.0002,2]
[349560299,1737295847486,-500.0,0.0002,2]
[349560300,1737295847496,-500.0,0.0002,2]
[349560301,1737295847505,-500.0,0.0002,2]
[349560302,1737295847517,-500.0,0.0002,2]
[349560303,1737295847527,-500.0,0.0002,2]
[349560304,1737295847536,-500.0,0.0002,2]
[349560305,1737295847545,-500.0,0.0002,2]
[349560306,1737295847555,-500.0,0.0002,2]
[349560307,1737295847564,-236.3946993,0.0002,2]
[349560308,1737295847573,-362.15020602,0.0002,2]
[349560309,1737295847583,-500.0,0.0002,2]
[349560310,1737295847592,-500.0,0.0002,2]
[349560311,1737295847602,-433.37280222,0.0002,2]
[349560312,1737295847612,-500.0,0.0002,2]
[349560313,1737295847621,-500.0,0.0002,2]
[349560314,1737295847631,-500.0,0.0002,2]
[349560315,1737295847640,-500.0,0.0002,2]
[349560316,1737295847651,-500.0,0.0002,2]
[349560317,1737295847660,-500.0,0.0002,2]
[349560318,1737295847670,-500.0,0.0002,2]
[349560319,1737295847680,-500.0,0.0002,2]
[349560320,1737295847689,-500.0,0.0002,2]
[349560321,1737295847698,-500.0,0.0002,2]
[349560322,1737295847707,-500.0,0.0002,2]
[349560323,1737295847717,-500.0,0.0002,2]
[349560324,1737295847727,-500.0,0.0002,2]
[349560325,1737295847736,-500.0,0.0002,2]
[349560326,1737295847746,-500.0,0.0002,2]
[349560327,1737295847756,-500.0,0.0002,2]
[349560328,1737295847770,-500.0,0.0002,2]
[349560329,1737295847780,-500.0,0.0002,2]
[349560330,1737295847789,-500.0,0.0002,2]
[349560331,1737295847800,-500.0,0.0002,2]
[349560332,1737295847811,-500.0,0.0002,2]
[349560333,1737295847822,-500.0,0.0002,2]
[349560334,1737295847831,-500.0,0.0002,2]
[349560335,1737295847840,-500.0,0.0002,2]
[349560336,1737295847850,-500.0,0.0002,2]
[349560337,1737295847860,-500.0,0.0002,2]
[349560338,1737295847871,-500.0,0.0002,2]
[349560339,1737295847880,-537.56,0.0002,2]
[349560340,1737295847889,-500.0,0.0002,2]
[349560341,1737295847899,-200.85309505,0.0002,2]
[349560342,1737295847909,-500.0,0.0002,2]
[349560343,1737295847918,-332.68726613,0.0002,2]
[349560344,1737295847927,-500.0,0.0002,2]
[349560345,1737295847936,-500.0,0.0002,2]
[349560346,1737295847945,-500.0,0.0002,2]
[349560347,1737295847955,-514.13877028,0.0002,2]
[349560348,1737295847964,-500.0,0.0002,2]
[349560349,1737295847973,-500.0,0.0002,2]
[349560350,1737295847983,-500.0,0.0002,2]
[349560351,1737295847992,-500.0,0.0002,2]
[349560352,1737295848002,-500.0,0.0002,2]
[349560353,1737295848011,-500.0,0.0002,2]
[349560354,1737295848025,-500.0,0.0002,2]
[349560355,1737295848035,-979.7,0.0002,2]
[349560356,1737295848045,-500.0,0.0002,2]
[349560357,1737295848055,-200.0,0.0002,2]
[349560358,1737295848064,-500.0,0.0002,2]
[349560359,1737295848075,-500.0,0.0002,2]
[349560360,1737295848085,-500.0,0.0002,2]
[349560361,1737295848094,-500.0,0.0002,2]
[349560362,1737295848104,-500.0,0.0002,2]
[349560363,1737295848114,-500.0,0.0002,2]
[349560364,1737295848124,-648.95,0.0002,2]
[349560365,1737295848134,-500.0,0.0002,2]
[349560366,1737295848143,-824.661231,0.0002,2]
[349560367,1737295848153,-500.0,0.0002,2]
[349560368,1737295848163,-500.0,0.0002,2]
[349560369,1737295848173,-500.0,0.0002,2]
[349560370,1737295848183,-500.0,0.0002,2]
[349560371,1737295848192,-463.31505,0.0002,2]
[349560372,1737295848201,-500.0,0.0002,2]
[349560373,1737295848210,-500.0,0.0002,2]
[349560374,1737295848220,-500.0,0.0002,2]
[349560375,1737295848229,-500.0,0.0002,2]
[349560376,1737295848238,-500.0,0.0002,2]
[349560377,1737295848247,-500.0,0.0002,2]
[349560378,1737295848256,-201.78386291,0.0002,2]
[349560379,1737295848267,-500.0,0.0002,2]
[349560380,1737295848276,-500.0,0.0002,2]
[349560381,1737295848285,-593.71,0.0002,2]
[349560382,1737295848294,-500.0,0.0002,2]
[349560383,1737295848304,-500.0,0.0002,2]
[349560384,1737295848313,-421.41625779,0.0002,2]
[349560385,1737295848322,-500.0,0.0002,2]
[349560386,1737295848331,-500.0,0.0002,2]
[349560387,1737295848340,-562.68,0.0002,2]
[349560388,1737295848349,-500.0,0.0002,2]
[349560389,1737295848358,-500.0,0.0002,2]
[349560390,1737295848367,-500.0,0.0002,2]
[349560391,1737295848376,-500.0,0.0002,2]
[349560392,1737295848385,-500.0,0.0002,2]
[349560393,1737295848394,-500.0,0.0002,2]
[349560394,1737295848403,-500.0,0.0002,2]
[349560395,1737295848412,-500.0,0.0002,2]
[349560396,1737295848422,-500.0,0.0002,2]
[349560397,1737295848431,-500.0,0.0002,2]
[349560398,1737295848440,-500.0,0.0002,2]
[349560399,1737295848449,-500.0,0.0002,2]
[349560400,1737295848459,-500.0,0.0002,2]
[349560401,1737295848469,-500.0,0.0002,2]
[349560402,1737295848479,-500.0,0.0002,2]
[349560403,1737295848488,-500.0,0.0002,2]
[349560404,1737295848497,-500.0,0.0002,2]
[349560405,1737295848507,-182.510015,0.0002,2]
[349560406,1737295848519,-598.03,0.0002,2]
[349560407,1737295848529,-182.510015,0.0002,2]
[349560408,1737295848539,-500.0,0.0002,2]
[349560409,1737295848548,-500.0,0.0002,2]
[349560410,1737295848558,-500.0,0.0002,2]
[349560411,1737295848568,-500.0,0.0002,2]
[349560412,1737295848577,-500.0,0.0002,2]
[349560413,1737295848587,-500.0,0.0002,2]
[349560414,1737295848597,-500.0,0.0002,2]
[349560415,1737295848606,-500.0,0.0002,2]
[349560416,1737295848615,-500.0,0.0002,2]
[349560417,1737295848624,-500.0,0.0002,2]
[349560418,1737295848634,-601.44,0.0002,2]
[349560419,1737295848643,-500.0,0.0002,2]
[349560420,1737295848652,-500.0,0.0002,2]
[349560421,1737295848662,-500.0,0.0002,2]
[349560422,1737295848671,-500.0,0.0002,2]
[349560423,1737295848681,-500.0,0.0002,2]
[349560424,1737295848690,-500.0,0.0002,2]
[349560425,1737295848700,-500.0,0.0002,2]
[349560426,1737295848709,-525.22,0.0002,2]
[349560427,1737295848718,-500.0,0.0002,2]
[349560428,1737295848727,-156.395726,0.0002,2]
[349560429,1737295848736,-500.0,0.0002,2]
[349560430,1737295848745,-500.0,0.0002,2]
[349560431,1737295848755,-500.0,0.0002,2]
[349560432,1737295848764,-500.0,0.0002,2]
[349560433,1737295848777,-500.0,0.0002,2]
[349560434,1737295848787,-151.0,0.0002,2]
[349560435,1737295848796,-500.0,0.0002,2]
[349560436,1737295848806,-500.0,0.0002,2]
[349560437,1737295848816,-151.0,0.0002,2]
[349560438,1737295848830,-500.0,0.0002,2]
[349560439,1737295848840,-505.71336928,0.0002,2]
[349560440,1737295848850,-500.0,0.0002,2]
[349560441,1737295848860,-500.0,0.0002,2]
[349560442,1737295848870,-500.0,0.0002,2]
[349560443,1737295848880,-500.0,0.0002,2]
[349560444,1737295848889,-500.0,0.0002,2]
[349560445,1737295848899,-624.0,0.0002,2]
[349560446,1737295848909,-734.71,0.0002,2]
[349560447,1737295848919,-500.0,0.0002,2]
[349560448,1737295848928,-636.09,0.0002,2]
[349560449,1737295848937,-500.0,0.0002,2]
[349560450,1737295848946,-500.0,0.0002,2]
[349560451,1737295848956,-539.65582775,0.0002,2]
[349560452,1737295848965,-684.88,0.0002,2]
[349560453,1737295848975,-500.0,0.0002,2]
[349560454,1737295848984,-500.0,0.0002,2]
[349560455,1737295848993,-1247.32,0.0002,2]
[349560456,1737295849003,-500.0,0.0002,2]
[349560457,1737295849013,-151.0,0.0002,2]
[349560458,1737295849025,-986.9,0.0002,2]
[349560459,1737295849035,-499.54219965,0.0002,2]
[349560460,1737295849044,-2869.51,0.0002,2]
[349560461,1737295849053,-500.0,0.0002,2]
[349560462,1737295849063,-384.82625495,0.0002,2]
[349560463,1737295849072,-500.0,0.0002,2]
[349560464,1737295849083,-511.89,0.0002,2]
[349560465,1737295849092,-547.55,0.0002,2]
[349560466,1737295849102,-500.0,0.0002,2]
[349560467,1737295849113,-500.0,0.0002,2]
[349560468,1737295849122,-500.0,0.0002,2]
[349560469,1737295849132,-500.0,0.0002,2]
[349560470,1737295849142,-980.39,0.0002,2]
[349560471,1737295849151,-500.0,0.0002,2]
[349560472,1737295849161,-500.0,0.0002,2]
[349560473,1737295849172,-1901.43,0.0002,2]
[349560474,1737295849182,-574.45,0.0002,2]
[349560475,1737295849191,-500.0,0.0002,2]
[349560476,1737295849202,-500.0,0.0002,2]
[349560477,1737295849212,-1895.82,0.0002,2]
[349560478,1737295849221,-1772.87,0.0002,2]
[349560479,1737295849231,-907.58,0.0002,2]
[349560480,1737295849240,-500.0,0.0002,2]
[349560481,1737295849251,-500.0,0.0002,2]
[349560482,1737295849261,-962.1,0.0002,2]
[349560483,1737295849275,-611.5,0.0002,2]
[349560484,1737295849284,-500.0,0.0002,2]
[349560485,1737295849294,-615.07,0.0002,2]
[349560486,1737295849304,-1081.13,0.0002,2]
[349560487,1737295849313,-1824.47,0.0002,2]
[349560488,1737295849323,-1128.83,0.0002,2]
[349560489,1737295849333,-779.59,0.0002,2]
[349560490,1737295849342,-1057.43,0.0002,2]
[349560491,1737295849352,-466.118015,0.0002,2]
[349560492,1737295849362,-500.0,0.0002,2]
[349560493,1737295849372,-2511.83,0.0002,2]
[349560494,1737295849382,-808.36,0.0002,2]
[349560495,1737295849391,-500.0,0.0002,2]
[349560496,1737295849402,-950.06,0.0002,2]
[349560497,1737295849412,-1505.94,0.0002,2]
[349560498,1737295849422,-500.0,0.0002,2]
[349560499,1737295849432,-1601.1,0.0002,2]
[349560500,1737295849442,-1392.17,0.0002,2]
[349560501,1737295849452,-1936.96,0.0002,2]
[349560502,1737295849462,-913.05,0.0002,2]
[349560503,1737295849471,-2265.47,0.0002,2]
[349560504,1737295849481,-500.0,0.0002,2]
[349560505,1737295849492,-500.0,0.0002,2]
[349560506,1737295849502,-1982.14,0.0002,2]
[349560507,1737295849511,-500.0,0.0002,2]
[349560508,1737295849526,-553.34,0.0002,2]
[349560509,1737295849536,-151.0,0.0002,2]
[349560510,1737295849547,-3330.96,0.0002,2]
[349560511,1737295849556,-151.0,0.0002,2]
[349560512,1737295849566,-500.0,0.0002,2]
[349560513,1737295849576,-500.0,0.0002,2]
[349560514,1737295849585,-154.480029,0.0002,2]
[349560515,1737295849595,-779.34,0.0002,2]
[349560516,1737295849604,-1043.03,0.0002,2]
[349560517,1737295849614,-500.0,0.0002,2]
[349560518,1737295849623,-1370.63,0.0002,2]
[349560519,1737295849633,-500.0,0.0002,2]
[349560520,1737295849642,-564.65,0.0002,2]
[349560521,1737295849652,-3709.46,0.0002,2]
[349560522,1737295849662,-502.23,0.0002,2]
[349560523,1737295849672,-1640.85,0.0002,2]
[349560524,1737295849682,-500.0,0.0002,2]
[349560525,1737295849691,-544.68,0.0002,2]
[349560526,1737295849701,-1350.5,0.0002,2]
[349560527,1737295849711,-797.87,0.0002,2]
[349560528,1737295849720,-3651.14,0.0002,2]
[349560529,1737295849730,-4438.25,0.0002,2]
[349560530,1737295849739,-593.61839358,0.0002,2]
[349560531,1737295849749,-500.0,0.0002,2]
[349560532,1737295849759,-500.0,0.0002,2]
[349560533,1737295849771,-500.0,0.0002,2]
[349560534,1737295849781,-759.5,0.0002,2]
[349560535,1737295849790,-892.16,0.0002,2]
[349560536,1737295849800,-500.0,0.0002,2]
[349560537,1737295849813,-2450.03,0.0002,2]
[349560538,1737295849824,-500.0,0.0002,2]
[349560539,1737295849834,-299.922979,0.0002,2]
[349560540,1737295849844,-501.18,0.0002,2]
[349560541,1737295849854,-500.0,0.0002,2]
[349560542,1737295849864,-299.922979,0.0002,2]
[349560543,1737295849874,-723.03,0.0002,2]
[349560544,1737295849883,-530.67,0.0002,2]
[349560545,1737295849893,-500.0,0.0002,2]
[349560546,1737295849905,-2025.11,0.0002,2]
[349560547,1737295849914,-500.0,0.0002,2]
[349560548,1737295849923,-261.36722586,0.0002,2]
[349560549,1737295849933,-864.92,0.0002,2]
[349560550,1737295849942,-500.0,0.0002,2]
[349560551,1737295849951,-1553.11,0.0002,2]
[349560552,1737295849960,-6815.31,0.0002,2]
[349560553,1737295849970,-500.0,0.0002,2]
[349560554,1737295849980,-586.46,0.0002,2]
[349560555,1737295849991,-939.47,0.0002,2]
[349560556,1737295850000,-500.0,0.0002,2]
[349560557,1737295850010,-1310.9,0.0002,2]
[349560558,1737295850020,-500.0,0.0002,2]
[349560559,1737295850030,-500.0,0.0002,2]
[349560560,1737295850039,-1177.09,0.0002,2]
[349560561,1737295850048,-500.0,0.0002,2]
[349560562,1737295850058,-1155.77,0.0002,2]
[349560563,1737295850067,-151.0,0.0002,2]
[349560564,1737295850076,-500.0,0.0002,2]
[349560565,1737295850085,-2403.83,0.0002,2]
[349560566,1737295850095,-5986.62,0.0002,2]
[349560567,1737295850104,-247.176676,0.0002,2]
[349560568,1737295850113,-866.62,0.0002,2]
[349560569,1737295850123,-500.0,0.0002,2]
[349560570,1737295850132,-2276.55,0.0002,2]
[349560571,1737295850142,-205.7437947,0.0002,2]
[349560572,1737295850151,-1028.52,0.0002,2]
[349560573,1737295850161,-633.36,0.0002,2]
[349560574,1737295850170,-727.12,0.0002,2]
[349560575,1737295850180,-1083.84,0.0002,2]
[349560576,1737295850189,-697.52,0.0002,2]
[349560577,1737295850198,-500.0,0.0002,2]
[349560578,1737295850207,-500.0,0.0002,2]
[349560579,1737295850217,-1671.75,0.0002,2]
[349560580,1737295850226,-872.62,0.0002,2]
[349560581,1737295850236,-1470.37,0.0002,2]
[349560582,1737295850245,-500.0,0.0002,2]
[349560583,1737295850254,-538.06,0.0002,2]
[349560584,1737295850264,-2113.17,0.0002,2]
[349560585,1737295850278,-669.95,0.0002,2]
[349560586,1737295850287,-6374.84,0.0002,2]